[Event "Titled Tuesday Blitz May 31 Early 2022"]
[White "Aggelis, Nikolaos"]
[Black "Yuan, Qingyu"]
[WhiteFideId "4213220"]
[BlackFideId "8609772"]
[WhiteElo "2154"]
[BlackElo "2359"]
[Result "0-1"]
[Round "02"]
[TimeControl "180+1"]
[Date "2022.05.31"]
[WhiteClock "0:00:46"]
[BlackClock "0:00:10"]

1. d4 {[%clk 0:03:00]}  d5 {[%clk 0:02:58]} 2. Nf3 {[%clk 0:02:45]}  Nf6 {[%clk 0:02:58]} 3. Bg5 {[%clk 0:02:46]}  Ne4 {[%clk 0:02:57]} 4. Bh4 {[%clk 0:02:40]}  c5 {[%clk 0:02:57]} 5. c3 {[%clk 0:02:39]}  Qb6 {[%clk 0:02:56]} 6. Qb3 {[%clk 0:02:40]}  Qxb3 {[%clk 0:02:36]} 7. axb3 {[%clk 0:02:39]}  e6 {[%clk 0:02:35]} 8. e3 {[%clk 0:02:37]}  Nc6 {[%clk 0:02:34]} 9. Nbd2 {[%clk 0:02:36]}  Nxd2 {[%clk 0:02:30]} 10. Kxd2 {[%clk 0:02:33]}  Bd7 {[%clk 0:02:28]} 11. Bb5 {[%clk 0:02:32]}  f6 {[%clk 0:02:25]} 12. dxc5 {[%clk 0:02:23]}  Bxc5 {[%clk 0:02:25]} 13. b4 {[%clk 0:02:24]}  Bd6 {[%clk 0:02:19]} 14. Nd4 {[%clk 0:02:23]}  Nxd4 {[%clk 0:02:01]} 15. Bxd7+ {[%clk 0:02:24]}  Kxd7 {[%clk 0:02:01]} 16. exd4 {[%clk 0:02:22]}  a6 {[%clk 0:01:50]} 17. Bg3 {[%clk 0:02:19]}  h5 {[%clk 0:01:42]} 18. Bxd6 {[%clk 0:02:12]}  Kxd6 {[%clk 0:01:43]} 19. Rhe1 {[%clk 0:02:12]}  h4 {[%clk 0:01:42]} 20. Re3 {[%clk 0:02:09]}  Rh5 {[%clk 0:01:40]} 21. b5 {[%clk 0:02:08]}  Rhh8 {[%clk 0:01:28]} 22. bxa6 {[%clk 0:02:07]}  Rxa6 {[%clk 0:01:28]} 23. Rxa6+ {[%clk 0:02:06]}  bxa6 {[%clk 0:01:29]} 24. Re1 {[%clk 0:02:05]}  Rb8 {[%clk 0:01:25]} 25. b4 {[%clk 0:01:59]}  a5 {[%clk 0:01:19]} 26. bxa5 {[%clk 0:01:58]}  Rb2+ {[%clk 0:01:19]} 27. Ke3 {[%clk 0:01:58]}  Ra2 {[%clk 0:01:18]} 28. Rb1 {[%clk 0:01:58]}  Rxa5 {[%clk 0:01:13]} 29. Rb6+ {[%clk 0:01:57]}  Ke7 {[%clk 0:01:13]} 30. Rb7+ {[%clk 0:01:57]}  Kf8 {[%clk 0:01:14]} 31. Rb8+ {[%clk 0:01:56]}  Kf7 {[%clk 0:01:14]} 32. Rb7+ {[%clk 0:01:56]}  Kg6 {[%clk 0:01:14]} 33. Re7 {[%clk 0:01:56]}  Ra6 {[%clk 0:01:12]} 34. h3 {[%clk 0:01:45]}  Rc6 {[%clk 0:01:12]} 35. Kd3 {[%clk 0:01:44]}  Kh6 {[%clk 0:01:12]} 36. Re8 {[%clk 0:01:43]}  g6 {[%clk 0:01:12]} 37. Re7 {[%clk 0:01:43]}  Kg5 {[%clk 0:01:12]} 38. Re8 {[%clk 0:01:40]}  Kf5 {[%clk 0:01:13]} 39. Rh8 {[%clk 0:01:38]}  g5 {[%clk 0:01:13]} 40. g3 {[%clk 0:01:38]}  hxg3 {[%clk 0:01:10]} 41. fxg3 {[%clk 0:01:39]}  Ra6 {[%clk 0:01:08]} 42. h4 {[%clk 0:01:40]}  g4 {[%clk 0:01:03]} 43. h5 {[%clk 0:01:33]}  Ra1 {[%clk 0:01:03]} 44. h6 {[%clk 0:01:33]}  Rg1 {[%clk 0:00:51]} 45. h7 {[%clk 0:01:25]}  Rxg3+ {[%clk 0:00:51]} 46. Ke2 {[%clk 0:01:25]}  Rh3 {[%clk 0:00:48]} 47. Kf2 {[%clk 0:01:24]}  Ke4 {[%clk 0:00:35]} 48. Re8 {[%clk 0:01:21]}  Rxh7 {[%clk 0:00:34]} 49. Rxe6+ {[%clk 0:01:21]}  Kf5 {[%clk 0:00:28]} 50. Rd6 {[%clk 0:01:22]}  Rh2+ {[%clk 0:00:24]} 51. Kg3 {[%clk 0:01:21]}  Rh3+ {[%clk 0:00:25]} 52. Kg2 {[%clk 0:01:21]}  Rxc3 {[%clk 0:00:25]} 53. Rxd5+ {[%clk 0:01:21]}  Kf4 {[%clk 0:00:25]} 54. Ra5 {[%clk 0:01:13]}  Rc2+ {[%clk 0:00:24]} 55. Kf1 {[%clk 0:01:11]}  Rd2 {[%clk 0:00:19]} 56. d5 {[%clk 0:01:11]}  f5 {[%clk 0:00:19]} 57. Ke1 {[%clk 0:01:08]}  Rd4 {[%clk 0:00:18]} 58. Ke2 {[%clk 0:01:06]}  Ke4 {[%clk 0:00:19]} 59. Ra8 {[%clk 0:00:58]}  Rxd5 {[%clk 0:00:17]} 60. Kf2 {[%clk 0:00:58]}  Kf4 {[%clk 0:00:17]} 61. Ra4+ {[%clk 0:00:58]}  Kg5 {[%clk 0:00:17]} 62. Ra8 {[%clk 0:00:58]}  Re5 {[%clk 0:00:17]} 63. Rb8 {[%clk 0:00:58]}  Kf4 {[%clk 0:00:17]} 64. Rb4+ {[%clk 0:00:58]}  Re4 {[%clk 0:00:18]} 65. Rb3 {[%clk 0:00:58]}  Ra4 {[%clk 0:00:18]} 66. Rb8 {[%clk 0:00:57]}  Ra2+ {[%clk 0:00:18]} 67. Kf1 {[%clk 0:00:56]}  Ra3 {[%clk 0:00:16]} 68. Kf2 {[%clk 0:00:53]}  g3+ {[%clk 0:00:16]} 69. Kg2 {[%clk 0:00:53]}  Ra2+ {[%clk 0:00:17]} 70. Kg1 {[%clk 0:00:54]}  Kf3 {[%clk 0:00:16]} 71. Rb3+ {[%clk 0:00:54]}  Kg4 {[%clk 0:00:17]} 72. Rc3 {[%clk 0:00:51]}  f4 {[%clk 0:00:17]} 73. Rb3 {[%clk 0:00:51]}  Kh3 {[%clk 0:00:11]} 74. Rb1 {[%clk 0:00:48]}  f3 {[%clk 0:00:11]} 75. Rc1 {[%clk 0:00:46]}  f2+ {[%clk 0:00:09]} 76. Kf1 {[%clk 0:00:46]}  g2# {[%clk 0:00:10]} 0-1


[Site "https://www.chess.com"]

[Event "Titled Tuesday Blitz May 31 Early 2022"]
[White "Ambartsumova, Karina"]
[Black "Guseinov, Gadir"]
[WhiteFideId "4166299"]
[BlackFideId "13401378"]
[WhiteElo "2262"]
[BlackElo "2581"]
[Result "0-1"]
[Round "02"]
[TimeControl "180+1"]
[Date "2022.05.31"]
[WhiteClock "0:00:08"]
[BlackClock "0:00:15"]

1. d4 {[%clk 0:03:00]}  Nf6 {[%clk 0:02:58]} 2. Nf3 {[%clk 0:03:00]}  g6 {[%clk 0:02:59]} 3. g3 {[%clk 0:03:00]}  Bg7 {[%clk 0:02:59]} 4. Bg2 {[%clk 0:03:01]}  O-O {[%clk 0:03:00]} 5. O-O {[%clk 0:03:01]}  d6 {[%clk 0:03:00]} 6. b3 {[%clk 0:03:02]}  Nbd7 {[%clk 0:02:53]} 7. Bb2 {[%clk 0:03:02]}  Rb8 {[%clk 0:02:35]} 8. a4 {[%clk 0:02:53]}  b6 {[%clk 0:02:32]} 9. Re1 {[%clk 0:02:34]}  Bb7 {[%clk 0:02:31]} 10. Nbd2 {[%clk 0:02:30]}  a6 {[%clk 0:02:28]} 11. e4 {[%clk 0:02:27]}  e5 {[%clk 0:02:24]} 12. dxe5 {[%clk 0:02:04]}  Ng4 {[%clk 0:02:23]} 13. Qc1 {[%clk 0:01:42]}  Ngxe5 {[%clk 0:02:19]} 14. Nxe5 {[%clk 0:01:42]}  dxe5 {[%clk 0:02:17]} 15. Nc4 {[%clk 0:01:37]}  Re8 {[%clk 0:02:16]} 16. Qe3 {[%clk 0:01:33]}  Qe7 {[%clk 0:02:14]} 17. Rad1 {[%clk 0:01:27]}  Rbd8 {[%clk 0:02:06]} 18. Ba3 {[%clk 0:01:10]}  Qe6 {[%clk 0:02:06]} 19. Rd2 {[%clk 0:00:56]}  Nb8 {[%clk 0:01:58]} 20. Red1 {[%clk 0:00:52]}  Rxd2 {[%clk 0:01:57]} 21. Qxd2 {[%clk 0:00:47]}  Nc6 {[%clk 0:01:53]} 22. Qd7 {[%clk 0:00:34]}  b5 {[%clk 0:01:19]} 23. Qxe6 {[%clk 0:00:30]}  Rxe6 {[%clk 0:01:17]} 24. axb5 {[%clk 0:00:31]}  axb5 {[%clk 0:01:18]} 25. Ne3 {[%clk 0:00:31]}  Bf8 {[%clk 0:01:09]} 26. Bxf8 {[%clk 0:00:27]}  Kxf8 {[%clk 0:01:08]} 27. Rd7 {[%clk 0:00:27]}  Re7 {[%clk 0:01:04]} 28. Rxe7 {[%clk 0:00:26]}  Kxe7 {[%clk 0:01:05]} 29. Nd5+ {[%clk 0:00:22]}  Kd6 {[%clk 0:01:05]} 30. Kf1 {[%clk 0:00:13]}  Nd4 {[%clk 0:01:04]} 31. Ne3 {[%clk 0:00:13]}  Kc5 {[%clk 0:01:01]} 32. Ke1 {[%clk 0:00:12]}  f5 {[%clk 0:00:49]} 33. exf5 {[%clk 0:00:13]}  Bxg2 {[%clk 0:00:49]} 34. Nxg2 {[%clk 0:00:13]}  gxf5 {[%clk 0:00:48]} 35. Kd2 {[%clk 0:00:08]}  Nf3+ {[%clk 0:00:47]} 36. Ke2 {[%clk 0:00:08]}  Nxh2 {[%clk 0:00:41]} 37. Ne3 {[%clk 0:00:04]}  f4 {[%clk 0:00:41]} 38. gxf4 {[%clk 0:00:02]}  exf4 {[%clk 0:00:42]} 39. Nd1 {[%clk 0:00:02]}  f3+ {[%clk 0:00:38]} 40. Ke3 {[%clk 0:00:02]}  h5 {[%clk 0:00:34]} 41. Kf4 {[%clk 0:00:01]}  Kd4 {[%clk 0:00:28]} 42. Kg3 {[%clk 0:00:01]}  Ng4 {[%clk 0:00:24]} 43. Kxf3 {[%clk 0:00:02]}  Ne5+ {[%clk 0:00:25]} 44. Ke2 {[%clk 0:00:03]}  h4 {[%clk 0:00:24]} 45. c4 {[%clk 0:00:03]}  b4 {[%clk 0:00:21]} 46. f4 {[%clk 0:00:03]}  Ng4 {[%clk 0:00:19]} 47. Kf3 {[%clk 0:00:03]}  Nf6 {[%clk 0:00:17]} 48. Nf2 {[%clk 0:00:03]}  Kc3 {[%clk 0:00:17]} 49. Ne4+ {[%clk 0:00:04]}  Nxe4 {[%clk 0:00:13]} 50. Kxe4 {[%clk 0:00:05]}  h3 {[%clk 0:00:14]} 51. Kf3 {[%clk 0:00:05]}  Kd4 {[%clk 0:00:14]} 52. Kg3 {[%clk 0:00:05]}  Ke4 {[%clk 0:00:15]} 53. c5 {[%clk 0:00:04]}  h2 {[%clk 0:00:14]} 54. Kxh2 {[%clk 0:00:04]}  Kxf4 {[%clk 0:00:14]} 55. Kg2 {[%clk 0:00:05]}  Ke4 {[%clk 0:00:15]} 56. Kf2 {[%clk 0:00:05]}  Kd4 {[%clk 0:00:14]} 57. Ke2 {[%clk 0:00:05]}  Kc3 {[%clk 0:00:14]} 58. Ke3 {[%clk 0:00:05]}  Kxb3 {[%clk 0:00:15]} 59. Kd4 {[%clk 0:00:06]}  Ka4 {[%clk 0:00:15]} 60. Kc4 {[%clk 0:00:06]}  b3 {[%clk 0:00:15]} 61. Kc3 {[%clk 0:00:07]}  Ka3 {[%clk 0:00:15]} 62. c6 {[%clk 0:00:07]}  b2 {[%clk 0:00:15]} 63. Kc2 {[%clk 0:00:08]}  Ka2 {[%clk 0:00:15]} 0-1


[Site "https://www.chess.com"]

[Event "Titled Tuesday Blitz May 31 Early 2022"]
[White "Aradhya, Garg"]
[Black "Ilyasli, Ughur"]
[WhiteFideId "25006746"]
[BlackFideId "13416197"]
[WhiteElo "2169"]
[BlackElo "2045"]
[Result "1/2-1/2"]
[Round "02"]
[TimeControl "180+1"]
[Date "2022.06.01"]
[WhiteClock "0:00:26"]
[BlackClock "0:00:03"]

1. d4 {[%clk 0:02:58]}  Nf6 {[%clk 0:02:59]} 2. c4 {[%clk 0:02:58]}  g6 {[%clk 0:02:59]} 3. g3 {[%clk 0:02:58]}  Bg7 {[%clk 0:02:59]} 4. Bg2 {[%clk 0:02:58]}  O-O {[%clk 0:03:00]} 5. Nc3 {[%clk 0:02:59]}  d6 {[%clk 0:03:00]} 6. Nf3 {[%clk 0:02:59]}  Nbd7 {[%clk 0:03:00]} 7. O-O {[%clk 0:02:57]}  e5 {[%clk 0:03:01]} 8. h3 {[%clk 0:02:57]}  Re8 {[%clk 0:03:00]} 9. e4 {[%clk 0:02:54]}  exd4 {[%clk 0:02:56]} 10. Nxd4 {[%clk 0:02:55]}  h5 {[%clk 0:02:49]} 11. Bg5 {[%clk 0:02:53]}  Ne5 {[%clk 0:02:46]} 12. b3 {[%clk 0:02:47]}  c6 {[%clk 0:02:36]} 13. f4 {[%clk 0:02:42]}  Ned7 {[%clk 0:02:28]} 14. f5 {[%clk 0:02:41]}  Qa5 {[%clk 0:02:17]} 15. Rc1 {[%clk 0:02:35]}  Nh7 {[%clk 0:01:30]} 16. Be3 {[%clk 0:02:33]}  Nb6 {[%clk 0:01:15]} 17. g4 {[%clk 0:02:16]}  d5 {[%clk 0:01:13]} 18. fxg6 {[%clk 0:02:13]}  fxg6 {[%clk 0:01:11]} 19. gxh5 {[%clk 0:02:13]}  c5 {[%clk 0:01:03]} 20. hxg6 {[%clk 0:02:11]}  Nf8 {[%clk 0:00:58]} 21. Qh5 {[%clk 0:01:20]}  cxd4 {[%clk 0:00:48]} 22. Rxf8+ {[%clk 0:01:20]}  Kxf8 {[%clk 0:00:48]} 23. Bg5 {[%clk 0:01:19]}  Re5 {[%clk 0:00:17]} 24. Rf1+ {[%clk 0:01:05]}  Ke8 {[%clk 0:00:17]} 25. Qh7 {[%clk 0:01:01]}  dxc3 {[%clk 0:00:10]} 26. Qxg7 {[%clk 0:01:00]}  Qc5+ {[%clk 0:00:09]} 27. Kh1 {[%clk 0:01:00]}  Rxg5 {[%clk 0:00:09]} 28. Rf7 {[%clk 0:00:56]}  Nd7 {[%clk 0:00:03]} 29. Qg8+ {[%clk 0:00:52]}  Nf8 {[%clk 0:00:03]} 30. g7 {[%clk 0:00:52]}  Rxg7 {[%clk 0:00:03]} 31. Qxg7 {[%clk 0:00:52]}  Be6 {[%clk 0:00:04]} 32. Rf1 {[%clk 0:00:41]}  c2 {[%clk 0:00:04]} 33. exd5 {[%clk 0:00:40]}  Qe3 {[%clk 0:00:04]} 34. Qb2 {[%clk 0:00:38]}  Qd2 {[%clk 0:00:03]} 35. dxe6 {[%clk 0:00:36]}  Nxe6 {[%clk 0:00:03]} 36. Qh8+ {[%clk 0:00:33]}  Kd7 {[%clk 0:00:03]} 37. Qxa8 {[%clk 0:00:33]}  c1=Q {[%clk 0:00:02]} 38. Qxb7+ {[%clk 0:00:33]}  Ke8 {[%clk 0:00:01]} 39. Qc6+ {[%clk 0:00:29]}  Ke7 {[%clk 0:00:01]} 40. Rxc1 {[%clk 0:00:29]}  Qxc1+ {[%clk 0:00:01]} 41. Kh2 {[%clk 0:00:29]}  Qf4+ {[%clk 0:00:02]} 42. Kg1 {[%clk 0:00:30]}  Qe3+ {[%clk 0:00:02]} 43. Kf1 {[%clk 0:00:30]}  Qc1+ {[%clk 0:00:02]} 44. Kf2 {[%clk 0:00:30]}  Qd2+ {[%clk 0:00:03]} 45. Kg1 {[%clk 0:00:30]}  Qe3+ {[%clk 0:00:02]} 46. Kh1 {[%clk 0:00:25]}  Qc1+ {[%clk 0:00:02]} 47. Kh2 {[%clk 0:00:26]}  Qf4+ {[%clk 0:00:03]} 48. Kg1 {[%clk 0:00:26]}  Qe3+ {[%clk 0:00:03]} 1/2-1/2


[Site "https://www.chess.com"]

[Event "Titled Tuesday Blitz May 31 Early 2022"]
[White "Bacrot, Etienne"]
[Black "Hasangatin, Ramil"]
[WhiteFideId "605506"]
[BlackFideId "4122160"]
[WhiteElo "2673"]
[BlackElo "2399"]
[Result "1-0"]
[Round "02"]
[TimeControl "180+1"]
[Date "2022.05.31"]
[WhiteClock "0:00:50"]
[BlackClock "0:00:04"]

1. Nf3 {[%clk 0:03:00]}  d5 {[%clk 0:02:51]} 2. g3 {[%clk 0:03:01]}  Nc6 {[%clk 0:02:51]} 3. Bg2 {[%clk 0:03:02]}  e5 {[%clk 0:02:51]} 4. d3 {[%clk 0:03:02]}  Nf6 {[%clk 0:02:51]} 5. O-O {[%clk 0:03:02]}  h6 {[%clk 0:02:52]} 6. Nbd2 {[%clk 0:03:02]}  Be6 {[%clk 0:02:52]} 7. e4 {[%clk 0:03:02]}  Bd6 {[%clk 0:02:32]} 8. exd5 {[%clk 0:02:52]}  Bxd5 {[%clk 0:02:32]} 9. Re1 {[%clk 0:02:51]}  O-O {[%clk 0:02:31]} 10. b3 {[%clk 0:02:50]}  Re8 {[%clk 0:02:30]} 11. Bb2 {[%clk 0:02:50]}  a5 {[%clk 0:01:55]} 12. a3 {[%clk 0:02:44]}  Qd7 {[%clk 0:01:14]} 13. c4 {[%clk 0:02:21]}  Be6 {[%clk 0:01:12]} 14. Qc2 {[%clk 0:02:21]}  Bf5 {[%clk 0:00:55]} 15. c5 {[%clk 0:02:16]}  Bf8 {[%clk 0:00:55]} 16. Ne4 {[%clk 0:02:17]}  Nxe4 {[%clk 0:00:47]} 17. dxe4 {[%clk 0:02:16]}  Bg4 {[%clk 0:00:43]} 18. Rad1 {[%clk 0:02:15]}  Qe6 {[%clk 0:00:42]} 19. Rd5 {[%clk 0:02:15]}  f6 {[%clk 0:00:35]} 20. Nh4 {[%clk 0:01:56]}  Ne7 {[%clk 0:00:33]} 21. Rd3 {[%clk 0:01:40]}  Qf7 {[%clk 0:00:33]} 22. f4 {[%clk 0:01:34]}  exf4 {[%clk 0:00:32]} 23. gxf4 {[%clk 0:01:34]}  Be6 {[%clk 0:00:30]} 24. f5 {[%clk 0:01:29]}  Bc8 {[%clk 0:00:30]} 25. Qf2 {[%clk 0:01:23]}  Kh7 {[%clk 0:00:28]} 26. Rg3 {[%clk 0:01:22]}  Nc6 {[%clk 0:00:27]} 27. Bf1 {[%clk 0:01:15]}  Ne5 {[%clk 0:00:27]} 28. Ng6 {[%clk 0:01:14]}  b6 {[%clk 0:00:25]} 29. Bxe5 {[%clk 0:01:03]}  fxe5 {[%clk 0:00:24]} 30. Bc4 {[%clk 0:01:03]}  Qf6 {[%clk 0:00:21]} 31. Nxf8+ {[%clk 0:00:57]}  Qxf8 {[%clk 0:00:19]} 32. cxb6 {[%clk 0:00:55]}  cxb6 {[%clk 0:00:19]} 33. Qxb6 {[%clk 0:00:54]}  Qf6 {[%clk 0:00:04]} 34. Qxf6 {[%clk 0:00:52]}  gxf6 {[%clk 0:00:04]} 35. Rg6 {[%clk 0:00:50]}  Rf8 {[%clk 0:00:04]} 36. Re3 {[%clk 0:00:50]} 1-0


[Site "https://www.chess.com"]

[Event "Titled Tuesday Blitz May 31 Early 2022"]
[White "Boder, Jan"]
[Black "Cherniaiev, Tykhon"]
[WhiteFideId "16243226"]
[BlackFideId "14182360"]
[WhiteElo "2064"]
[BlackElo "2289"]
[Result "1-0"]
[Round "02"]
[TimeControl "180+1"]
[Date "2022.06.01"]
[WhiteClock "0:00:10"]
[BlackClock "0:00:21"]

1. c4 {[%clk 0:03:00]}  e5 {[%clk 0:02:59]} 2. g3 {[%clk 0:03:01]}  Nf6 {[%clk 0:02:57]} 3. Bg2 {[%clk 0:03:01]}  d5 {[%clk 0:02:57]} 4. cxd5 {[%clk 0:03:02]}  Nxd5 {[%clk 0:02:57]} 5. Nc3 {[%clk 0:03:03]}  Nb6 {[%clk 0:02:57]} 6. Nf3 {[%clk 0:03:03]}  Nc6 {[%clk 0:02:57]} 7. O-O {[%clk 0:03:03]}  Be6 {[%clk 0:02:58]} 8. Rb1 {[%clk 0:02:52]}  Be7 {[%clk 0:02:57]} 9. b4 {[%clk 0:02:49]}  Bxb4 {[%clk 0:02:50]} 10. Nxe5 {[%clk 0:02:45]}  Nxe5 {[%clk 0:02:49]} 11. Rxb4 {[%clk 0:02:43]}  Nc6 {[%clk 0:02:49]} 12. Rh4 {[%clk 0:02:33]}  Qe7 {[%clk 0:02:49]} 13. Qc2 {[%clk 0:02:31]}  Rd8 {[%clk 0:02:48]} 14. Rxh7 {[%clk 0:02:25]}  O-O {[%clk 0:02:40]} 15. Qe4 {[%clk 0:01:34]}  Rd4 {[%clk 0:02:14]} 16. Qc2 {[%clk 0:01:29]}  g6 {[%clk 0:02:03]} 17. Rh4 {[%clk 0:01:07]}  Rxh4 {[%clk 0:02:00]} 18. gxh4 {[%clk 0:01:07]}  Qxh4 {[%clk 0:02:01]} 19. Qe4 {[%clk 0:01:07]}  Qf6 {[%clk 0:01:58]} 20. Bb2 {[%clk 0:00:59]}  Nc4 {[%clk 0:01:51]} 21. Ba1 {[%clk 0:00:31]}  Nxd2 {[%clk 0:01:48]} 22. Qe3 {[%clk 0:00:18]}  Nxf1 {[%clk 0:01:48]} 23. Bxf1 {[%clk 0:00:19]}  Qd4 {[%clk 0:01:47]} 24. Qh6 {[%clk 0:00:18]}  Qg4+ {[%clk 0:01:41]} 25. Bg2 {[%clk 0:00:18]}  Rd8 {[%clk 0:01:39]} 26. Nd5 {[%clk 0:00:17]}  f6 {[%clk 0:01:09]} 27. Nxf6+ {[%clk 0:00:15]}  Kf7 {[%clk 0:01:08]} 28. Nxg4 {[%clk 0:00:14]}  Rd1+ {[%clk 0:01:06]} 29. Bf1 {[%clk 0:00:15]}  Bxg4 {[%clk 0:00:51]} 30. Qg7+ {[%clk 0:00:15]}  Ke8 {[%clk 0:00:50]} 31. Qxg6+ {[%clk 0:00:13]}  Ke7 {[%clk 0:00:49]} 32. Bf6+ {[%clk 0:00:11]}  Ke6 {[%clk 0:00:49]} 33. Bh4+ {[%clk 0:00:10]}  Kd7 {[%clk 0:00:48]} 34. Qxg4+ {[%clk 0:00:11]}  Kd6 {[%clk 0:00:47]} 35. Bg3+ {[%clk 0:00:11]}  Kc5 {[%clk 0:00:47]} 36. h4 {[%clk 0:00:12]}  Rd4 {[%clk 0:00:44]} 37. Qg7 {[%clk 0:00:10]}  Rd5 {[%clk 0:00:40]} 38. h5 {[%clk 0:00:10]}  Rxh5 {[%clk 0:00:39]} 39. e3 {[%clk 0:00:11]}  Rd5 {[%clk 0:00:37]} 40. Qc3+ {[%clk 0:00:11]}  Kb6 {[%clk 0:00:37]} 41. Bc4 {[%clk 0:00:11]}  Rc5 {[%clk 0:00:36]} 42. Qb3+ {[%clk 0:00:10]}  Ka5 {[%clk 0:00:36]} 43. Qa3+ {[%clk 0:00:10]}  Kb6 {[%clk 0:00:36]} 44. Bb3 {[%clk 0:00:09]}  Na5 {[%clk 0:00:34]} 45. Qb4+ {[%clk 0:00:09]}  Rb5 {[%clk 0:00:30]} 46. Bxc7+ {[%clk 0:00:09]}  Ka6 {[%clk 0:00:29]} 47. Bc4 {[%clk 0:00:07]}  Nxc4 {[%clk 0:00:28]} 48. Qxc4 {[%clk 0:00:08]}  b6 {[%clk 0:00:24]} 49. a4 {[%clk 0:00:08]}  Kb7 {[%clk 0:00:25]} 50. axb5 {[%clk 0:00:08]}  a5 {[%clk 0:00:21]} 51. Qc6+ {[%clk 0:00:08]}  Kc8 {[%clk 0:00:20]} 52. Bxb6+ {[%clk 0:00:09]}  Kb8 {[%clk 0:00:20]} 53. Qc7+ {[%clk 0:00:09]}  Ka8 {[%clk 0:00:21]} 54. Qa7# {[%clk 0:00:10]} 1-0


[Site "https://www.chess.com"]

[Event "Titled Tuesday Blitz May 31 Early 2022"]
[White "Chigaev, Maksim"]
[Black "Agasarov, Benik"]
[WhiteFideId "4108116"]
[BlackFideId "13314823"]
[WhiteElo "2457"]
[BlackElo "2597"]
[Result "1-0"]
[Round "02"]
[TimeControl "180+1"]
[Date "2022.05.31"]
[WhiteClock "0:00:05"]
[BlackClock "0:00:02"]

1. d4 {[%clk 0:03:00]}  Nf6 {[%clk 0:02:59]} 2. c4 {[%clk 0:02:59]}  e6 {[%clk 0:03:00]} 3. Nf3 {[%clk 0:02:59]}  d5 {[%clk 0:02:59]} 4. Nc3 {[%clk 0:02:58]}  Bb4 {[%clk 0:02:58]} 5. Bg5 {[%clk 0:02:49]}  dxc4 {[%clk 0:02:51]} 6. e4 {[%clk 0:02:46]}  c5 {[%clk 0:02:20]} 7. Bxc4 {[%clk 0:02:41]}  cxd4 {[%clk 0:02:20]} 8. Nxd4 {[%clk 0:02:39]}  Qa5 {[%clk 0:02:16]} 9. Bb5+ {[%clk 0:02:09]}  Bd7 {[%clk 0:02:05]} 10. Bxf6 {[%clk 0:02:03]}  gxf6 {[%clk 0:01:34]} 11. O-O {[%clk 0:02:03]}  Bxc3 {[%clk 0:01:34]} 12. Bxd7+ {[%clk 0:02:01]}  Nxd7 {[%clk 0:01:34]} 13. bxc3 {[%clk 0:02:02]}  O-O-O {[%clk 0:01:30]} 14. Rb1 {[%clk 0:02:00]}  Nc5 {[%clk 0:01:25]} 15. Qh5 {[%clk 0:01:57]}  Qxc3 {[%clk 0:01:06]} 16. Nb5 {[%clk 0:01:33]}  Qe5 {[%clk 0:01:05]} 17. Nxa7+ {[%clk 0:01:32]}  Kc7 {[%clk 0:01:04]} 18. Qf3 {[%clk 0:01:04]}  Rd3 {[%clk 0:00:58]} 19. Qe2 {[%clk 0:01:04]}  Rhd8 {[%clk 0:00:56]} 20. Rfc1 {[%clk 0:01:00]}  b6 {[%clk 0:00:50]} 21. g3 {[%clk 0:00:43]}  Kb7 {[%clk 0:00:49]} 22. Nb5 {[%clk 0:00:44]}  Qxe4 {[%clk 0:00:48]} 23. Qxe4+ {[%clk 0:00:39]}  Nxe4 {[%clk 0:00:49]} 24. Rc7+ {[%clk 0:00:38]}  Kb8 {[%clk 0:00:49]} 25. Rxf7 {[%clk 0:00:39]}  Rd1+ {[%clk 0:00:46]} 26. Rxd1 {[%clk 0:00:40]}  Rxd1+ {[%clk 0:00:47]} 27. Kg2 {[%clk 0:00:40]}  Rd2 {[%clk 0:00:48]} 28. Kf3 {[%clk 0:00:41]}  Ng5+ {[%clk 0:00:47]} 29. Ke3 {[%clk 0:00:41]}  Nxf7 {[%clk 0:00:30]} 30. Kxd2 {[%clk 0:00:41]}  Kb7 {[%clk 0:00:30]} 31. Nd4 {[%clk 0:00:33]}  Nd8 {[%clk 0:00:29]} 32. Ke3 {[%clk 0:00:32]}  Kc7 {[%clk 0:00:28]} 33. Ke4 {[%clk 0:00:33]}  Kd6 {[%clk 0:00:28]} 34. g4 {[%clk 0:00:34]}  Nf7 {[%clk 0:00:27]} 35. f4 {[%clk 0:00:34]}  h6 {[%clk 0:00:24]} 36. h4 {[%clk 0:00:34]}  Nd8 {[%clk 0:00:24]} 37. h5 {[%clk 0:00:33]}  Nf7 {[%clk 0:00:24]} 38. a4 {[%clk 0:00:31]}  Kd7 {[%clk 0:00:21]} 39. Nb5 {[%clk 0:00:29]}  Kc6 {[%clk 0:00:19]} 40. Kd4 {[%clk 0:00:28]}  Kd7 {[%clk 0:00:18]} 41. Nc3 {[%clk 0:00:27]}  e5+ {[%clk 0:00:15]} 42. Ke4 {[%clk 0:00:24]}  Nd6+ {[%clk 0:00:15]} 43. Kf3 {[%clk 0:00:25]}  exf4 {[%clk 0:00:14]} 44. Kxf4 {[%clk 0:00:25]}  Ke6 {[%clk 0:00:14]} 45. Ne2 {[%clk 0:00:26]}  Kd5 {[%clk 0:00:10]} 46. Ng3 {[%clk 0:00:25]}  Ke6 {[%clk 0:00:10]} 47. Nf1 {[%clk 0:00:18]}  Nc4 {[%clk 0:00:10]} 48. Nh2 {[%clk 0:00:17]}  Nb2 {[%clk 0:00:10]} 49. Nf3 {[%clk 0:00:16]}  Nxa4 {[%clk 0:00:11]} 50. Nd4+ {[%clk 0:00:17]}  Kf7 {[%clk 0:00:11]} 51. Nf5 {[%clk 0:00:18]}  Nc5 {[%clk 0:00:12]} 52. Nxh6+ {[%clk 0:00:19]}  Kg7 {[%clk 0:00:12]} 53. Nf5+ {[%clk 0:00:20]}  Kh7 {[%clk 0:00:13]} 54. Nd6 {[%clk 0:00:20]}  Nd7 {[%clk 0:00:11]} 55. Kf5 {[%clk 0:00:21]}  Kh6 {[%clk 0:00:11]} 56. Nb5 {[%clk 0:00:18]}  Kg7 {[%clk 0:00:11]} 57. Nd4 {[%clk 0:00:19]}  Kh7 {[%clk 0:00:09]} 58. Ke6 {[%clk 0:00:18]}  Ne5 {[%clk 0:00:10]} 59. Kf5 {[%clk 0:00:15]}  Nd7 {[%clk 0:00:10]} 60. Nb5 {[%clk 0:00:15]}  Kg7 {[%clk 0:00:10]} 61. Nc7 {[%clk 0:00:14]}  Kh7 {[%clk 0:00:09]} 62. Nd5 {[%clk 0:00:13]}  Kg7 {[%clk 0:00:08]} 63. Ke6 {[%clk 0:00:10]}  Nc5+ {[%clk 0:00:06]} 64. Kf5 {[%clk 0:00:10]}  Nd7 {[%clk 0:00:06]} 65. Nc7 {[%clk 0:00:10]}  Kf7 {[%clk 0:00:06]} 66. h6 {[%clk 0:00:07]}  Kg8 {[%clk 0:00:06]} 67. Ne8 {[%clk 0:00:05]}  Kf7 {[%clk 0:00:03]} 68. h7 {[%clk 0:00:05]}  Nf8 {[%clk 0:00:02]} 69. h8=Q {[%clk 0:00:05]} 1-0


[Site "https://www.chess.com"]